[Event "Titled Tuesday Blitz April 05 Early 2022"]
[White "Lamaze, Simon"]
[Black "Al-Tarboush, Ward"]
[WhiteFideId "36069264"]
[BlackFideId "7601450"]
[WhiteElo "1999"]
[BlackElo "2276"]
[Result "1-0"]
[Round "02"]
[TimeControl "180+1"]
[Date "2022.04.05"]
[WhiteClock "0:00:17"]
[BlackClock "0:00:42"]

1. d4 {[%clk 0:02:57]}  d5 {[%clk 0:02:56]} 2. c4 {[%clk 0:02:55]}  c6 {[%clk 0:02:55]} 3. Nf3 {[%clk 0:02:55]}  Nf6 {[%clk 0:02:56]} 4. g3 {[%clk 0:02:55]}  dxc4 {[%clk 0:02:55]} 5. Bg2 {[%clk 0:02:55]}  g6 {[%clk 0:02:55]} 6. O-O {[%clk 0:02:54]}  Bg7 {[%clk 0:02:55]} 7. Ne5 {[%clk 0:02:48]}  O-O {[%clk 0:02:55]} 8. Nxc4 {[%clk 0:02:48]}  Nbd7 {[%clk 0:02:54]} 9. Nc3 {[%clk 0:02:48]}  Nb6 {[%clk 0:02:53]} 10. Ne5 {[%clk 0:02:44]}  Nfd7 {[%clk 0:02:49]} 11. Nf3 {[%clk 0:02:35]}  e5 {[%clk 0:02:48]} 12. dxe5 {[%clk 0:02:34]}  Nxe5 {[%clk 0:02:49]} 13. Qxd8 {[%clk 0:02:34]}  Rxd8 {[%clk 0:02:50]} 14. Bg5 {[%clk 0:02:27]}  f6 {[%clk 0:02:47]} 15. Nxe5 {[%clk 0:02:14]}  fxg5 {[%clk 0:02:47]} 16. Nf3 {[%clk 0:02:14]}  h6 {[%clk 0:02:45]} 17. Rad1 {[%clk 0:02:12]}  Be6 {[%clk 0:02:44]} 18. Nd2 {[%clk 0:01:43]}  Bxc3 {[%clk 0:02:42]} 19. bxc3 {[%clk 0:01:44]}  Bxa2 {[%clk 0:02:42]} 20. Ne4 {[%clk 0:01:44]}  Kg7 {[%clk 0:02:35]} 21. Nc5 {[%clk 0:01:41]}  Rxd1 {[%clk 0:02:26]} 22. Rxd1 {[%clk 0:01:42]}  Rb8 {[%clk 0:02:26]} 23. Ra1 {[%clk 0:01:42]}  Bc4 {[%clk 0:02:06]} 24. Rxa7 {[%clk 0:01:38]}  Bxe2 {[%clk 0:02:04]} 25. Bxc6 {[%clk 0:01:36]}  Kf6 {[%clk 0:01:53]} 26. Rxb7 {[%clk 0:01:30]}  Rxb7 {[%clk 0:01:51]} 27. Bxb7 {[%clk 0:01:30]}  Ke5 {[%clk 0:01:37]} 28. Be4 {[%clk 0:00:53]}  Nd5 {[%clk 0:01:31]} 29. Bxg6 {[%clk 0:00:38]}  Nxc3 {[%clk 0:01:30]} 30. Nb3 {[%clk 0:00:37]}  Bd1 {[%clk 0:01:25]} 31. Nd2 {[%clk 0:00:37]}  Kf6 {[%clk 0:01:21]} 32. Bd3 {[%clk 0:00:35]}  Ba4 {[%clk 0:01:19]} 33. f3 {[%clk 0:00:32]}  Bc6 {[%clk 0:01:19]} 34. Kf2 {[%clk 0:00:23]}  Nd1+ {[%clk 0:01:19]} 35. Ke2 {[%clk 0:00:23]}  Nc3+ {[%clk 0:01:19]} 36. Ke3 {[%clk 0:00:23]}  Nd1+ {[%clk 0:01:19]} 37. Kd4 {[%clk 0:00:24]}  Nf2 {[%clk 0:01:19]} 38. Bf1 {[%clk 0:00:24]}  Kf5 {[%clk 0:01:16]} 39. Be2 {[%clk 0:00:20]}  h5 {[%clk 0:01:10]} 40. Ke3 {[%clk 0:00:20]}  Nh3 {[%clk 0:01:09]} 41. Bd3+ {[%clk 0:00:20]}  Kf6 {[%clk 0:01:09]} 42. Nc4 {[%clk 0:00:18]}  g4 {[%clk 0:01:04]} 43. f4 {[%clk 0:00:19]}  Ng1 {[%clk 0:01:03]} 44. Ne5 {[%clk 0:00:19]}  Be8 {[%clk 0:01:03]} 45. Be4 {[%clk 0:00:19]}  Nh3 {[%clk 0:01:00]} 46. Bg2 {[%clk 0:00:19]}  Ng5 {[%clk 0:00:56]} 47. fxg5+ {[%clk 0:00:16]}  Kxe5 {[%clk 0:00:56]} 48. Be4 {[%clk 0:00:17]}  Bd7 {[%clk 0:00:48]} 49. g6 {[%clk 0:00:17]}  Kf6 {[%clk 0:00:49]} 50. Kf4 {[%clk 0:00:17]}  Be8 {[%clk 0:00:49]} 51. Bd3 {[%clk 0:00:16]}  Bxg6 {[%clk 0:00:48]} 52. Bxg6 {[%clk 0:00:16]}  Kxg6 {[%clk 0:00:49]} 53. Ke5 {[%clk 0:00:16]}  Kg5 {[%clk 0:00:49]} 54. Ke6 {[%clk 0:00:17]}  Kg6 {[%clk 0:00:50]} 55. Ke5 {[%clk 0:00:17]}  Kg5 {[%clk 0:00:50]} 56. Ke4 {[%clk 0:00:17]}  Kg6 {[%clk 0:00:50]} 57. Kd4 {[%clk 0:00:16]}  Kf5 {[%clk 0:00:50]} 58. Kd5 {[%clk 0:00:16]}  Kf6 {[%clk 0:00:50]} 59. Kd4 {[%clk 0:00:16]}  Kf5 {[%clk 0:00:49]} 60. Kd5 {[%clk 0:00:16]}  Kf6 {[%clk 0:00:50]} 61. Kd6 {[%clk 0:00:16]}  Kf5 {[%clk 0:00:50]} 62. Ke7 {[%clk 0:00:16]}  Ke4 {[%clk 0:00:50]} 63. Kf6 {[%clk 0:00:16]}  Kf3 {[%clk 0:00:51]} 64. Kg5 {[%clk 0:00:17]}  Kg2 {[%clk 0:00:43]} 65. Kxh5 {[%clk 0:00:17]}  Kxh2 {[%clk 0:00:42]} 66. Kxg4 {[%clk 0:00:17]} 1-0


[Site "https://www.chess.com"]

[Event "Titled Tuesday Blitz April 05 Early 2022"]
[White "Lashkin, Jegor"]
[Black "Derraugh, Geordie"]
[WhiteFideId "13907808"]
[BlackFideId "2603950"]
[WhiteElo "2368"]
[BlackElo "2116"]
[Result "1-0"]
[Round "02"]
[TimeControl "180+1"]
[Date "2022.04.05"]
[WhiteClock "0:01:08"]
[BlackClock "0:00:33"]

1. Nf3 {[%clk 0:03:00]}  Nf6 {[%clk 0:02:58]} 2. e3 {[%clk 0:03:01]}  g6 {[%clk 0:02:58]} 3. d4 {[%clk 0:03:01]}  Bg7 {[%clk 0:02:59]} 4. Bd3 {[%clk 0:03:01]}  O-O {[%clk 0:02:59]} 5. O-O {[%clk 0:03:02]}  d5 {[%clk 0:03:00]} 6. b3 {[%clk 0:03:02]}  c5 {[%clk 0:03:00]} 7. Bb2 {[%clk 0:03:02]}  Ne4 {[%clk 0:02:59]} 8. Nbd2 {[%clk 0:02:59]}  f5 {[%clk 0:02:55]} 9. c4 {[%clk 0:02:56]}  e6 {[%clk 0:02:55]} 10. Qe2 {[%clk 0:02:56]}  Nc6 {[%clk 0:02:55]} 11. Rfd1 {[%clk 0:02:52]}  Qc7 {[%clk 0:02:53]} 12. Rac1 {[%clk 0:02:52]}  Bd7 {[%clk 0:02:53]} 13. cxd5 {[%clk 0:02:51]}  exd5 {[%clk 0:02:52]} 14. Nb1 {[%clk 0:02:51]}  cxd4 {[%clk 0:02:45]} 15. Nxd4 {[%clk 0:02:51]}  Rae8 {[%clk 0:02:35]} 16. Nb5 {[%clk 0:02:49]}  Qb8 {[%clk 0:02:31]} 17. Bxg7 {[%clk 0:02:49]}  Kxg7 {[%clk 0:02:30]} 18. Bxe4 {[%clk 0:02:50]}  fxe4 {[%clk 0:02:30]} 19. Rxd5 {[%clk 0:02:50]}  Be6 {[%clk 0:02:27]} 20. Qb2+ {[%clk 0:02:48]}  Kg8 {[%clk 0:02:27]} 21. Rd6 {[%clk 0:02:48]}  a6 {[%clk 0:02:24]} 22. Rdxc6 {[%clk 0:02:48]}  bxc6 {[%clk 0:02:24]} 23. Nd4 {[%clk 0:02:48]}  Bd5 {[%clk 0:02:22]} 24. Nc3 {[%clk 0:02:48]}  Qe5 {[%clk 0:02:14]} 25. Nce2 {[%clk 0:02:45]}  Rc8 {[%clk 0:02:10]} 26. b4 {[%clk 0:02:43]}  Qf6 {[%clk 0:02:05]} 27. Nf4 {[%clk 0:02:42]}  Rb8 {[%clk 0:02:02]} 28. Qd2 {[%clk 0:02:40]}  g5 {[%clk 0:01:59]} 29. Nh5 {[%clk 0:02:39]}  Qf7 {[%clk 0:01:58]} 30. Ng3 {[%clk 0:02:37]}  Bxa2 {[%clk 0:01:56]} 31. Ngf5 {[%clk 0:02:37]}  Kh8 {[%clk 0:01:53]} 32. Qb2 {[%clk 0:02:27]}  Bd5 {[%clk 0:01:29]} 33. Nxc6+ {[%clk 0:02:24]}  Qf6 {[%clk 0:01:29]} 34. Qxf6+ {[%clk 0:02:23]}  Rxf6 {[%clk 0:01:30]} 35. Nxb8 {[%clk 0:02:23]}  Rxf5 {[%clk 0:01:31]} 36. Nxa6 {[%clk 0:02:16]}  Rf6 {[%clk 0:01:27]} 37. Nc7 {[%clk 0:02:05]}  Bb7 {[%clk 0:01:24]} 38. b5 {[%clk 0:01:49]}  h6 {[%clk 0:01:23]} 39. Kf1 {[%clk 0:01:44]}  Kg8 {[%clk 0:01:22]} 40. Rc5 {[%clk 0:01:44]}  Kf8 {[%clk 0:01:20]} 41. Nd5 {[%clk 0:01:38]}  Rf5 {[%clk 0:01:13]} 42. Nb6 {[%clk 0:01:37]}  Rf7 {[%clk 0:00:48]} 43. Nc4 {[%clk 0:01:35]}  Rd7 {[%clk 0:00:45]} 44. Ke1 {[%clk 0:01:34]}  Ke7 {[%clk 0:00:43]} 45. Na5 {[%clk 0:01:30]}  Bd5 {[%clk 0:00:41]} 46. b6 {[%clk 0:01:27]}  Kd6 {[%clk 0:00:40]} 47. Rb5 {[%clk 0:01:19]}  Rd8 {[%clk 0:00:33]} 48. b7 {[%clk 0:01:20]}  Rb8 {[%clk 0:00:33]} 49. Kd2 {[%clk 0:01:14]}  Bc6 {[%clk 0:00:31]} 50. Nxc6 {[%clk 0:01:13]}  Kxc6 {[%clk 0:00:32]} 51. Rb2 {[%clk 0:01:08]}  Rxb7 {[%clk 0:00:32]} 52. Rxb7 {[%clk 0:01:08]}  Kxb7 {[%clk 0:00:33]} 53. Kc3 {[%clk 0:01:08]} 1-0


[Site "https://www.chess.com"]

[Event "Titled Tuesday Blitz April 05 Early 2022"]
[White "Le Ruyet, Leopold"]
[Black "Manukian, Artak"]
[WhiteFideId "645923"]
[BlackFideId "13301373"]
[WhiteElo "2276"]
[BlackElo "2370"]
[Result "1-0"]
[Round "02"]
[TimeControl "180+1"]
[Date "2022.04.05"]
[WhiteClock "0:00:39"]
[BlackClock "0:00:44"]

1. e4 {[%clk 0:02:43]}  c6 {[%clk 0:02:24]} 2. d4 {[%clk 0:02:43]}  d5 {[%clk 0:02:25]} 3. e5 {[%clk 0:02:43]}  Bf5 {[%clk 0:02:24]} 4. h4 {[%clk 0:02:42]}  h5 {[%clk 0:02:23]} 5. Nc3 {[%clk 0:02:41]}  e6 {[%clk 0:02:22]} 6. Bg5 {[%clk 0:02:41]}  Qb6 {[%clk 0:02:21]} 7. Bd3 {[%clk 0:02:39]}  Qxb2 {[%clk 0:02:11]} 8. Bxf5 {[%clk 0:02:20]}  Qxc3+ {[%clk 0:02:02]} 9. Bd2 {[%clk 0:02:19]}  Qxd4 {[%clk 0:02:02]} 10. Nf3 {[%clk 0:02:19]}  Qa4 {[%clk 0:02:00]} 11. Bd3 {[%clk 0:02:17]}  Nd7 {[%clk 0:01:28]} 12. O-O {[%clk 0:01:56]}  Nh6 {[%clk 0:01:24]} 13. Qe2 {[%clk 0:01:51]}  Ng4 {[%clk 0:01:19]} 14. Ng5 {[%clk 0:01:40]}  Ngxe5 {[%clk 0:01:13]} 15. f4 {[%clk 0:01:39]}  Nxd3 {[%clk 0:01:11]} 16. cxd3 {[%clk 0:01:17]}  Be7 {[%clk 0:01:08]} 17. Bc3 {[%clk 0:00:59]}  d4 {[%clk 0:00:55]} 18. Bb2 {[%clk 0:00:42]}  Bxg5 {[%clk 0:00:50]} 19. hxg5 {[%clk 0:00:41]}  g6 {[%clk 0:00:44]} 20. f5 {[%clk 0:00:39]} 1-0


[Site "https://www.chess.com"]

[Event "Titled Tuesday Blitz April 05 Early 2022"]
[White "Lehtosaari, Mauri"]
[Black "Ardila, Oscar Humberto"]
[WhiteFideId "501999"]
[BlackFideId "4404742"]
[WhiteElo "2549"]
[BlackElo "1983"]
[Result "1-0"]
[Round "02"]
[TimeControl "180+1"]
[Date "2022.04.05"]
[WhiteClock "0:00:20"]
[BlackClock "0:00:13"]

1. d4 {[%clk 0:03:00]}  Nf6 {[%clk 0:03:00]} 2. Nf3 {[%clk 0:03:01]}  g6 {[%clk 0:02:58]} 3. Bg5 {[%clk 0:03:01]}  Bg7 {[%clk 0:02:58]} 4. Nbd2 {[%clk 0:03:00]}  h6 {[%clk 0:02:58]} 5. Bxf6 {[%clk 0:03:00]}  Bxf6 {[%clk 0:02:58]} 6. e4 {[%clk 0:03:00]}  d6 {[%clk 0:02:58]} 7. Bc4 {[%clk 0:02:59]}  O-O {[%clk 0:02:56]} 8. c3 {[%clk 0:02:59]}  Nd7 {[%clk 0:02:56]} 9. O-O {[%clk 0:02:56]}  e5 {[%clk 0:02:56]} 10. h3 {[%clk 0:02:55]}  Qe7 {[%clk 0:02:55]} 11. Re1 {[%clk 0:02:55]}  Nb6 {[%clk 0:02:54]} 12. Bb3 {[%clk 0:02:54]}  c6 {[%clk 0:02:53]} 13. a4 {[%clk 0:02:53]}  a5 {[%clk 0:02:53]} 14. Nc4 {[%clk 0:02:28]}  Nxc4 {[%clk 0:02:53]} 15. Bxc4 {[%clk 0:02:28]}  Be6 {[%clk 0:02:53]} 16. Qb3 {[%clk 0:02:20]}  Bxc4 {[%clk 0:02:50]} 17. Qxc4 {[%clk 0:02:21]}  Kg7 {[%clk 0:02:47]} 18. Rad1 {[%clk 0:02:19]}  Rfd8 {[%clk 0:02:46]} 19. Nh2 {[%clk 0:02:16]}  h5 {[%clk 0:02:42]} 20. Nf3 {[%clk 0:02:16]}  Rab8 {[%clk 0:02:35]} 21. g3 {[%clk 0:02:06]}  Qc7 {[%clk 0:02:32]} 22. Kg2 {[%clk 0:02:04]}  b5 {[%clk 0:02:24]} 23. axb5 {[%clk 0:02:02]}  Rxb5 {[%clk 0:02:24]} 24. dxe5 {[%clk 0:01:59]}  Bxe5 {[%clk 0:02:17]} 25. Nxe5 {[%clk 0:01:51]}  Rxe5 {[%clk 0:02:17]} 26. Re2 {[%clk 0:01:44]}  Rde8 {[%clk 0:02:03]} 27. Qd4 {[%clk 0:01:30]}  f6 {[%clk 0:01:58]} 28. Qxd6 {[%clk 0:01:28]}  Qb7 {[%clk 0:01:10]} 29. Qd7+ {[%clk 0:01:23]}  R8e7 {[%clk 0:01:10]} 30. Qxb7 {[%clk 0:01:22]}  Rxb7 {[%clk 0:01:11]} 31. Rd6 {[%clk 0:01:23]}  c5 {[%clk 0:01:11]} 32. Ra6 {[%clk 0:01:21]}  c4 {[%clk 0:01:10]} 33. Rc6 {[%clk 0:01:21]}  Reb5 {[%clk 0:01:10]} 34. Rxc4 {[%clk 0:01:18]}  Rxb2 {[%clk 0:01:10]} 35. Rxb2 {[%clk 0:01:18]}  Rxb2 {[%clk 0:01:10]} 36. Rc7+ {[%clk 0:01:19]}  Kh6 {[%clk 0:01:10]} 37. Rf7 {[%clk 0:01:11]}  Rb3 {[%clk 0:01:04]} 38. Rxf6 {[%clk 0:01:09]}  Rxc3 {[%clk 0:01:04]} 39. Ra6 {[%clk 0:01:10]}  Ra3 {[%clk 0:00:58]} 40. h4 {[%clk 0:01:06]}  a4 {[%clk 0:00:58]} 41. e5 {[%clk 0:00:52]}  Kg7 {[%clk 0:00:58]} 42. Ra7+ {[%clk 0:00:52]}  Kf8 {[%clk 0:00:58]} 43. Kf1 {[%clk 0:00:47]}  Ra2 {[%clk 0:00:56]} 44. Kg2 {[%clk 0:00:41]}  Ra3 {[%clk 0:00:56]} 45. e6 {[%clk 0:00:37]}  Ra1 {[%clk 0:00:36]} 46. Kf3 {[%clk 0:00:36]}  a3 {[%clk 0:00:36]} 47. Kf4 {[%clk 0:00:33]}  a2 {[%clk 0:00:35]} 48. f3 {[%clk 0:00:29]}  Ke8 {[%clk 0:00:27]} 49. Kg5 {[%clk 0:00:27]}  Re1 {[%clk 0:00:27]} 50. Rxa2 {[%clk 0:00:26]}  Rxe6 {[%clk 0:00:27]} 51. Ra4 {[%clk 0:00:22]}  Kf7 {[%clk 0:00:26]} 52. Rf4+ {[%clk 0:00:20]}  Kg7 {[%clk 0:00:26]} 53. Re4 {[%clk 0:00:20]}  Rd6 {[%clk 0:00:26]} 54. Re7+ {[%clk 0:00:21]}  Kf8 {[%clk 0:00:26]} 55. Ra7 {[%clk 0:00:21]}  Kg8 {[%clk 0:00:24]} 56. g4 {[%clk 0:00:20]}  hxg4 {[%clk 0:00:22]} 57. fxg4 {[%clk 0:00:21]}  Kf8 {[%clk 0:00:22]} 58. Kh6 {[%clk 0:00:20]}  Kg8 {[%clk 0:00:20]} 59. g5 {[%clk 0:00:19]}  Kf8 {[%clk 0:00:20]} 60. Rg7 {[%clk 0:00:18]}  Rd4 {[%clk 0:00:20]} 61. Kxg6 {[%clk 0:00:18]}  Rxh4 {[%clk 0:00:19]} 62. Ra7 {[%clk 0:00:18]}  Rd4 {[%clk 0:00:19]} 63. Ra8+ {[%clk 0:00:19]}  Ke7 {[%clk 0:00:19]} 64. Kg7 {[%clk 0:00:18]}  Rg4 {[%clk 0:00:18]} 65. g6 {[%clk 0:00:19]}  Rg2 {[%clk 0:00:17]} 66. Ra1 {[%clk 0:00:18]}  Ke8 {[%clk 0:00:16]} 67. Re1+ {[%clk 0:00:18]}  Kd8 {[%clk 0:00:16]} 68. Kh7 {[%clk 0:00:19]}  Rh2+ {[%clk 0:00:16]} 69. Kg8 {[%clk 0:00:19]}  Rg2 {[%clk 0:00:16]} 70. g7 {[%clk 0:00:20]}  Rf2 {[%clk 0:00:14]} 71. Re4 {[%clk 0:00:19]}  Rf5 {[%clk 0:00:14]} 72. Kh7 {[%clk 0:00:19]}  Rh5+ {[%clk 0:00:13]} 73. Kg6 {[%clk 0:00:20]}  Rh2 {[%clk 0:00:13]} 74. g8=Q+ {[%clk 0:00:20]}  Kd7 {[%clk 0:00:13]} 75. Qf7+ {[%clk 0:00:20]} 1-0


[Site "https://www.chess.com"]

[Event "Titled Tuesday Blitz April 05 Early 2022"]
[White "Madaminov, Mukhiddin"]
[Black "Butti, Enrique"]
[WhiteFideId "14210703"]
[BlackFideId "3700470"]
[WhiteElo "1916"]
[BlackElo "2080"]
[Result "0-1"]
[Round "02"]
[TimeControl "180+1"]
[Date "2022.04.05"]
[WhiteClock "0:00:02"]
[BlackClock "0:00:09"]

1. d4 {[%clk 0:03:00]}  Nf6 {[%clk 0:02:59]} 2. Nc3 {[%clk 0:03:01]}  g6 {[%clk 0:02:55]} 3. e4 {[%clk 0:03:00]}  d6 {[%clk 0:02:55]} 4. f4 {[%clk 0:03:00]}  Bg7 {[%clk 0:02:54]} 5. Bd3 {[%clk 0:03:00]}  Nc6 {[%clk 0:02:49]} 6. Nf3 {[%clk 0:03:00]}  Bg4 {[%clk 0:02:43]} 7. Be3 {[%clk 0:02:59]}  Nd7 {[%clk 0:02:40]} 8. e5 {[%clk 0:02:56]}  Nb4 {[%clk 0:02:35]} 9. Be2 {[%clk 0:02:53]}  c5 {[%clk 0:02:34]} 10. dxc5 {[%clk 0:02:47]}  dxe5 {[%clk 0:02:31]} 11. fxe5 {[%clk 0:02:42]}  Qa5 {[%clk 0:02:23]} 12. a3 {[%clk 0:02:37]}  Nc6 {[%clk 0:02:21]} 13. b4 {[%clk 0:02:38]}  Qc7 {[%clk 0:02:17]} 14. Nd5 {[%clk 0:02:35]}  Qb8 {[%clk 0:02:15]} 15. O-O {[%clk 0:02:30]}  Bxf3 {[%clk 0:02:09]} 16. Bxf3 {[%clk 0:02:19]}  Ncxe5 {[%clk 0:02:08]} 17. Rb1 {[%clk 0:01:46]}  e6 {[%clk 0:02:01]} 18. Nf4 {[%clk 0:01:42]}  O-O {[%clk 0:01:46]} 19. Rb3 {[%clk 0:01:41]}  Rd8 {[%clk 0:01:45]} 20. Qe2 {[%clk 0:01:39]}  Nxf3+ {[%clk 0:01:37]} 21. Qxf3 {[%clk 0:01:36]}  Ne5 {[%clk 0:01:36]} 22. Qe2 {[%clk 0:01:34]}  Qc7 {[%clk 0:01:29]} 23. Bc1 {[%clk 0:01:33]}  b6 {[%clk 0:01:20]} 24. cxb6 {[%clk 0:01:25]}  axb6 {[%clk 0:01:18]} 25. Bb2 {[%clk 0:01:23]}  Rac8 {[%clk 0:01:10]} 26. Rc1 {[%clk 0:00:31]}  Nc4 {[%clk 0:01:07]} 27. Bxg7 {[%clk 0:00:32]}  Kxg7 {[%clk 0:01:06]} 28. Rf1 {[%clk 0:00:32]}  e5 {[%clk 0:00:55]} 29. Nh3 {[%clk 0:00:28]}  f5 {[%clk 0:00:51]} 30. Ng5 {[%clk 0:00:23]}  Qe7 {[%clk 0:00:49]} 31. h4 {[%clk 0:00:19]}  Rd2 {[%clk 0:00:44]} 32. Qf3 {[%clk 0:00:17]}  e4 {[%clk 0:00:39]} 33. Qg3 {[%clk 0:00:16]}  e3 {[%clk 0:00:32]} 34. Re1 {[%clk 0:00:15]}  e2 {[%clk 0:00:28]} 35. h5 {[%clk 0:00:15]}  Rd1 {[%clk 0:00:22]} 36. Nf3 {[%clk 0:00:15]}  Nd2 {[%clk 0:00:15]} 37. h6+ {[%clk 0:00:13]}  Kg8 {[%clk 0:00:12]} 38. Kf2 {[%clk 0:00:14]}  Nxb3 {[%clk 0:00:09]} 39. Rxe2 {[%clk 0:00:13]}  Qc7 {[%clk 0:00:07]} 40. Qxc7 {[%clk 0:00:09]}  Rxc7 {[%clk 0:00:06]} 41. cxb3 {[%clk 0:00:10]}  Rd8 {[%clk 0:00:05]} 42. Ng5 {[%clk 0:00:10]}  Rcd7 {[%clk 0:00:04]} 43. Kg3 {[%clk 0:00:08]}  Rd2 {[%clk 0:00:03]} 44. Kh2 {[%clk 0:00:09]}  Rxe2 {[%clk 0:00:03]} 45. Ne6 {[%clk 0:00:04]}  Rdd2 {[%clk 0:00:04]} 46. Nf4 {[%clk 0:00:04]}  Rf2 {[%clk 0:00:04]} 47. Kg3 {[%clk 0:00:05]}  Rxf4 {[%clk 0:00:04]} 48. Kxf4 {[%clk 0:00:06]}  Rb2 {[%clk 0:00:04]} 49. a4 {[%clk 0:00:06]}  Rxb3 {[%clk 0:00:05]} 50. a5 {[%clk 0:00:06]}  Rxb4+ {[%clk 0:00:06]} 51. Ke5 {[%clk 0:00:06]}  Ra4 {[%clk 0:00:06]} 52. Kf6 {[%clk 0:00:07]}  Rxa5 {[%clk 0:00:06]} 53. Kg5 {[%clk 0:00:07]}  f4+ {[%clk 0:00:07]} 54. Kg4 {[%clk 0:00:06]}  Rf5 {[%clk 0:00:08]} 55. Kh4 {[%clk 0:00:05]}  f3 {[%clk 0:00:08]} 56. g4 {[%clk 0:00:04]}  f2 {[%clk 0:00:07]} 57. gxf5 {[%clk 0:00:03]}  f1=Q {[%clk 0:00:07]} 58. fxg6 {[%clk 0:00:03]}  hxg6 {[%clk 0:00:07]} 59. h7+ {[%clk 0:00:04]}  Kxh7 {[%clk 0:00:06]} 60. Kg5 {[%clk 0:00:04]}  Qe2 {[%clk 0:00:05]} 61. Kf6 {[%clk 0:00:04]}  Qe3 {[%clk 0:00:05]} 62. Kf7 {[%clk 0:00:05]}  g5 {[%clk 0:00:05]} 63. Kf6 {[%clk 0:00:05]}  g4 {[%clk 0:00:06]} 64. Kf5 {[%clk 0:00:06]}  g3 {[%clk 0:00:07]} 65. Kg4 {[%clk 0:00:05]}  g2 {[%clk 0:00:08]} 66. Kh4 {[%clk 0:00:01]}  g1=Q {[%clk 0:00:09]} 67. Kh5 {[%clk 0:00:02]}  Qh3# {[%clk 0:00:09]} 0-1


[Site "https://www.chess.com"]

[Event "Titled Tuesday Blitz April 05 Early 2022"]
[White "Manon-og, Ramon Jr."]
[Black "Sadovsky, Artem"]
[WhiteFideId "5200776"]
[BlackFideId "4155840"]
[WhiteElo "2251"]
[BlackElo "2314"]
[Result "1/2-1/2"]
[Round "02"]
[TimeControl "180+1"]
[Date "2022.04.05"]
[WhiteClock "0:00:09"]
[BlackClock "0:00:41"]

1. e4 {[%clk 0:03:00]}  g6 {[%clk 0:03:00]} 2. d4 {[%clk 0:03:00]}  Bg7 {[%clk 0:03:01]} 3. Nc3 {[%clk 0:03:00]}  c6 {[%clk 0:03:01]} 4. Nf3 {[%clk 0:03:00]}  d5 {[%clk 0:03:01]} 5. e5 {[%clk 0:03:00]}  h5 {[%clk 0:03:01]} 6. h3 {[%clk 0:03:00]}  Nh6 {[%clk 0:03:01]} 7. Bg5 {[%clk 0:03:00]}  Nf5 {[%clk 0:03:00]} 8. Bd3 {[%clk 0:02:59]}  b5 {[%clk 0:03:00]} 9. a3 {[%clk 0:02:59]}  a5 {[%clk 0:02:59]} 10. O-O {[%clk 0:02:58]}  Na6 {[%clk 0:02:59]} 11. Re1 {[%clk 0:02:53]}  Nc7 {[%clk 0:02:58]} 12. Qd2 {[%clk 0:02:46]}  Ne6 {[%clk 0:02:50]} 13. Bxf5 {[%clk 0:02:34]}  Nxg5 {[%clk 0:02:51]} 14. Nxg5 {[%clk 0:02:33]}  Bxf5 {[%clk 0:02:51]} 15. e6 {[%clk 0:02:33]}  f6 {[%clk 0:02:40]} 16. Nf7 {[%clk 0:02:32]}  Qc7 {[%clk 0:02:39]} 17. Nxh8 {[%clk 0:02:31]}  Bxh8 {[%clk 0:02:40]} 18. Qh6 {[%clk 0:02:30]}  O-O-O {[%clk 0:02:40]} 19. Re3 {[%clk 0:02:11]}  Kb8 {[%clk 0:02:31]} 20. g4 {[%clk 0:02:01]}  hxg4 {[%clk 0:02:26]} 21. hxg4 {[%clk 0:02:02]}  Bxg4 {[%clk 0:02:16]} 22. Qxg6 {[%clk 0:02:01]}  f5 {[%clk 0:02:17]} 23. Ne2 {[%clk 0:01:41]}  Bxe2 {[%clk 0:01:57]} 24. Rxe2 {[%clk 0:01:41]}  Bxd4 {[%clk 0:01:56]} 25. c3 {[%clk 0:01:40]}  Bb6 {[%clk 0:01:44]} 26. Kg2 {[%clk 0:01:22]}  Qc8 {[%clk 0:01:41]} 27. Kf3 {[%clk 0:01:15]}  Rg8 {[%clk 0:01:40]} 28. Qf7 {[%clk 0:01:13]}  Rg4 {[%clk 0:01:20]} 29. Rh1 {[%clk 0:01:00]}  Qc7 {[%clk 0:01:09]} 30. Qe8+ {[%clk 0:00:58]}  Kb7 {[%clk 0:01:08]} 31. Qd7 {[%clk 0:00:54]}  Rf4+ {[%clk 0:01:08]} 32. Kg2 {[%clk 0:00:52]}  Rg4+ {[%clk 0:01:07]} 33. Kf1 {[%clk 0:00:51]}  Qxd7 {[%clk 0:01:03]} 34. exd7 {[%clk 0:00:52]}  Rg7 {[%clk 0:01:03]} 35. Rh8 {[%clk 0:00:44]}  e5 {[%clk 0:00:51]} 36. d8=Q {[%clk 0:00:43]}  Bxd8 {[%clk 0:00:51]} 37. Rxd8 {[%clk 0:00:44]}  e4 {[%clk 0:00:51]} 38. Rf8 {[%clk 0:00:44]}  Rg5 {[%clk 0:00:50]} 39. Re3 {[%clk 0:00:44]}  Kb6 {[%clk 0:00:46]} 40. Rg3 {[%clk 0:00:44]}  Rh5 {[%clk 0:00:45]} 41. Rg6 {[%clk 0:00:44]}  Kc5 {[%clk 0:00:41]} 42. b4+ {[%clk 0:00:33]}  axb4 {[%clk 0:00:40]} 43. axb4+ {[%clk 0:00:34]}  Kc4 {[%clk 0:00:40]} 44. Rxc6+ {[%clk 0:00:33]}  Kd3 {[%clk 0:00:41]} 45. Rc5 {[%clk 0:00:28]}  e3 {[%clk 0:00:35]} 46. Rxd5+ {[%clk 0:00:24]}  Ke4 {[%clk 0:00:35]} 47. Rd4+ {[%clk 0:00:23]}  Kf3 {[%clk 0:00:36]} 48. Rxf5+ {[%clk 0:00:12]}  Rxf5 {[%clk 0:00:37]} 49. fxe3 {[%clk 0:00:11]}  Kxe3+ {[%clk 0:00:38]} 50. Kg2 {[%clk 0:00:11]}  Rf2+ {[%clk 0:00:37]} 51. Kg3 {[%clk 0:00:11]}  Rc2 {[%clk 0:00:38]} 52. Rd5 {[%clk 0:00:10]}  Rxc3 {[%clk 0:00:38]} 53. Rxb5 {[%clk 0:00:10]}  Kd4+ {[%clk 0:00:39]} 54. Kf4 {[%clk 0:00:10]}  Kc4 {[%clk 0:00:40]} 55. Rc5+ {[%clk 0:00:09]}  Kxb4 {[%clk 0:00:40]} 56. Rxc3 {[%clk 0:00:09]}  Kxc3 {[%clk 0:00:41]} 1/2-1/2


[Site "https://www.chess.com"]

[Event "Titled Tuesday Blitz April 05 Early 2022"]
[White "Manukyan, Sargis A."]
[Black "Pranav, V"]
[WhiteFideId "13303970"]
[BlackFideId "25060783"]
[WhiteElo "2187"]
[BlackElo "2349"]
[Result "0-1"]
[Round "02"]
[TimeControl "180+1"]
[Date "2022.04.05"]
[WhiteClock "0:00:04"]
[BlackClock "0:01:33"]

1. d4 {[%clk 0:03:00]}  Nf6 {[%clk 0:03:00]} 2. e3 {[%clk 0:02:59]}  g6 {[%clk 0:02:59]} 3. Nf3 {[%clk 0:02:59]}  Bg7 {[%clk 0:03:00]} 4. Be2 {[%clk 0:03:00]}  O-O {[%clk 0:03:01]} 5. O-O {[%clk 0:03:00]}  d6 {[%clk 0:03:01]} 6. Nbd2 {[%clk 0:03:00]}  Nbd7 {[%clk 0:03:02]} 7. b3 {[%clk 0:02:56]}  e5 {[%clk 0:03:02]} 8. dxe5 {[%clk 0:02:55]}  dxe5 {[%clk 0:03:02]} 9. Bb2 {[%clk 0:02:39]}  e4 {[%clk 0:02:57]} 10. Nd4 {[%clk 0:02:29]}  Re8 {[%clk 0:02:54]} 11. c4 {[%clk 0:02:29]}  a6 {[%clk 0:02:54]} 12. b4 {[%clk 0:02:28]}  c5 {[%clk 0:02:52]} 13. bxc5 {[%clk 0:02:25]}  Nxc5 {[%clk 0:02:53]} 14. N4b3 {[%clk 0:02:17]}  Nd3 {[%clk 0:02:45]} 15. Bc3 {[%clk 0:02:10]}  h5 {[%clk 0:02:42]} 16. Nxe4 {[%clk 0:02:02]}  Nxe4 {[%clk 0:02:26]} 17. Bxg7 {[%clk 0:02:02]}  Nexf2 {[%clk 0:02:23]} 18. Qc2 {[%clk 0:00:59]}  Kxg7 {[%clk 0:02:17]} 19. Bxd3 {[%clk 0:00:59]}  Nxd3 {[%clk 0:02:13]} 20. Rad1 {[%clk 0:00:58]}  Rxe3 {[%clk 0:02:05]} 21. Qd2 {[%clk 0:00:48]}  Qg5 {[%clk 0:01:52]} 22. Qc3+ {[%clk 0:00:44]}  Ne5 {[%clk 0:01:51]} 23. Qd4 {[%clk 0:00:39]}  Re2 {[%clk 0:01:51]} 24. g3 {[%clk 0:00:36]}  Bh3 {[%clk 0:01:47]} 25. Rf4 {[%clk 0:00:35]}  Rd8 {[%clk 0:01:36]} 26. Qxd8 {[%clk 0:00:25]}  Qxf4 {[%clk 0:01:35]} 27. gxf4 {[%clk 0:00:03]}  Nf3+ {[%clk 0:01:35]} 28. Kh1 {[%clk 0:00:04]}  Bg2# {[%clk 0:01:33]} 0-1


[Site "https://www.chess.com"]